bitfinex/quotes_SOLUSD_20250514
["timestamp","ask_amount","ask_price","bid_price","bid_amount"]
[1747236275905,137.60144927,176.2,176.16,5.67665758]
[1747236277118,137.60144927,176.2,176.15,18.64964886]
[1747236277309,137.60144927,176.2,176.16,20.78]
[1747236277632,143.27690692,176.2,176.16,20.78]
[1747236278407,137.60144927,176.2,176.16,20.78]
[1747236278602,137.60144927,176.2,176.16,26.45663917]
[1747236279721,5.6739616,176.25,176.17,18.64964886]
[1747236279898,137.60144927,176.24,176.17,18.64964886]
[1747236280103,157.05195286,176.24,176.17,18.64964886]
[1747236280499,5.67440276,176.23,176.17,18.64964886]
[1747236280902,5.67440276,176.23,176.16,26.45663917]
[1747236281148,25.12490635,176.23,176.16,26.45663247]
[1747236281439,19.45050359,176.22,176.16,20.78]
[1747236281813,19.45050359,176.18,176.09,1.6285]
[1747236282009,163.60144927,176.21,176.1,21.1]
[1747236282010,19.45050359,176.15,176.1,21.1]
[1747236282238,19.45050359,176.14,176.1,21.1]
[1747236282413,5.67762448,176.13,176.09,20.7]
[1747236283213,157.05195286,176.16,176.09,20.7]
[1747236283414,5.67707896,176.15,176.09,26.37886109]
[1747236283718,137.60144927,176.16,176.1,18.64964886]
[1747236284614,162.72865699,176.16,176.09,20.7]
[1747236284815,143.2781534,176.16,176.09,26.37874591]
[1747236285014,137.60144927,176.16,176.1,19.78518417]
[1747236285643,143.27711712,176.2,176.13,18.64964886]
[1747236285817,162.72762071,176.2,176.13,18.64964886]
[1747236287136,143.27711712,176.2,176.13,24.32721074]
[1747236287837,137.60144927,176.2,176.14,1.27741648]
[1747236288745,5.67444764,176.23,176.16,18.64964886]
[1747236288919,5.67444764,176.23,176.17,20.6]
[1747236289744,137.60144927,176.24,176.18,18.64964886]
[1747236289921,143.27560801,176.24,176.18,18.64964886]
[1747236290611,137.60144927,176.24,176.19,5.67569101]
[1747236291414,143.27560954,176.24,176.18,18.64964886]
[1747236292232,143.27560954,176.24,176.18,24.32562912]
[1747236292514,137.60144927,176.24,176.18,25.46053926]
[1747236293145,137.60144927,176.24,176.19,7.7964]
[1747236294055,143.27558771,176.24,176.19,7.7964]
[1747236296320,143.27558771,176.24,176.19,1.5806]
[1747236296516,143.27558771,176.24,176.19,22.1806]
[1747236297046,157.05195286,176.23,176.17,41.3]
[1747236297216,137.60144927,176.23,176.17,41.3]
[1747236297417,5.67472477,176.22,176.17,41.3]
[1747236297926,25.12522836,176.22,176.17,41.3]
[1747236298129,25.12522836,176.22,176.17,20.7]
[1747236298339,5.67472477,176.22,176.17,20.7]
[1747236299736,137.60144927,176.23,176.17,20.7]
[1747236300056,137.60144927,176.23,176.17,26.3761083]
[1747236300269,137.60144927,176.23,176.18,18.64964886]
[1747236300458,137.60144927,176.23,176.2,18.64964886]
[1747236300764,137.60144927,176.28,176.22,6.4811]
[1747236301064,6.5196,176.38,176.26,26.0]
[1747236301065,137.60144927,176.32,176.26,26.0]
[1747236301249,137.60144927,176.32,176.27,18.64964886]
[1747236301570,137.60144927,176.32,176.28,5.67279328]
[1747236302063,137.60144927,176.32,176.26,27.13431264]
[1747236302064,143.27305977,176.32,176.26,27.13431264]
[1747236302266,137.60144927,176.32,176.26,26.0]
[1747236302435,137.60144927,176.32,176.27,19.7840435]
[1747236303148,137.60144927,176.32,176.26,27.13433115]
[1747236303359,137.60144927,176.32,176.26,31.67339936]
[1747236304088,143.27301931,176.32,176.26,26.0]
[1747236304274,162.7235229,176.32,176.23,19.7841062]
[1747236304442,157.05195286,176.31,176.25,20.58]
[1747236304646,19.45050359,176.3,176.25,20.58]
[1747236304860,157.05195286,176.31,176.25,20.58]
[1747236305463,5.67214974,176.3,176.25,20.58]
[1747236305970,19.45050359,176.28,176.22,6.4811]
[1747236306153,157.05195286,176.27,176.22,20.58]
[1747236306346,19.45050359,176.25,176.21,1.6138]
[1747236306547,157.05195286,176.26,176.21,1.6138]
[1747236306738,137.60144927,176.26,176.21,1.6138]
[1747236307384,137.60144927,176.26,176.22,18.64964886]
[1747236307665,143.27336339,176.31,176.24,18.64964886]
[1747236307835,137.60144927,176.31,176.24,19.78418216]
[1747236308871,143.27343676,176.31,176.24,19.78418216]
[1747236309441,137.60144927,176.31,176.24,19.78418216]
[1747236309651,137.60144927,176.31,176.25,5.67375886]
[1747236309954,137.60144927,176.31,176.26,39.22964886]
[1747236310159,137.60144927,176.31,176.26,59.90964886]
[1747236310461,143.27341358,176.31,176.26,59.90964886]
[1747236311165,162.72391717,176.31,176.23,18.64964886]
[1747236311472,162.72391717,176.31,176.24,20.58]
[1747236312273,137.60144927,176.31,176.25,19.78426418]
[1747236312440,5.67094348,176.34,176.26,0.28432314]
[1747236312645,137.60144927,176.35,176.28,18.64964886]
[1747236312859,137.60144927,176.35,176.28,39.22964886]
[1747236313065,137.60144927,176.35,176.29,1.6067]
[1747236313270,143.27203483,176.35,176.3,18.64964886]
[1747236313455,137.60144927,176.35,176.31,20.58]
[1747236313660,143.27200596,176.35,176.31,20.58]
[1747236314260,137.60144927,176.35,176.31,20.58]
[1747236315088,137.60144927,176.35,176.32,18.64964886]
[1747236316175,143.27211044,176.35,176.29,1.6067]
[1747236316358,143.27211044,176.35,176.31,20.58]
[1747236316681,143.27211044,176.35,176.3,20.58]
[1747236317975,137.60144927,176.35,176.31,18.64964886]
[1747236318176,137.60144927,176.35,176.32,5.67150635]
[1747236318375,157.05195286,176.43,176.34,18.64964886]
[1747236318687,5.66829157,176.42,176.36,18.64964886]
[1747236318988,5.66829157,176.42,176.37,20.58]
[1747236319573,143.26945467,176.43,176.38,1.6282]
[1747236322484,143.26945467,176.43,176.37,20.58]
[1747236323369,137.60144927,176.43,176.38,18.64964886]
[1747236324258,137.60144927,176.43,176.38,25.45263585]
[1747236324477,137.60144927,176.43,176.38,24.31896672]
[1747236325001,137.60144927,176.43,176.38,18.64964886]
[1747236325685,137.60144927,176.43,176.37,20.58]
[1747236325686,143.26945154,176.43,176.37,20.58]
[1747236325878,162.71995513,176.43,176.37,20.58]
[1747236326189,157.05195286,176.42,176.37,20.58]
[1747236326380,5.66861289,176.41,176.37,20.58]
[1747236326773,5.66861289,176.41,176.36,20.56]
[1747236327593,39.2906487,176.41,176.34,1.6227]
[1747236327804,19.45050359,176.35,176.3,26.8341]
[1747236327967,19.45050359,176.35,176.3,20.56]
[1747236328167,163.60144927,176.4,176.3,20.56]
[1747236328390,19.45050359,176.36,176.3,20.56]
[1747236328574,137.60144927,176.35,176.3,20.56]
[1747236328771,157.05195286,176.35,176.3,20.56]
[1747236329468,137.60144927,176.35,176.3,20.56]
[1747236329702,137.60144927,176.35,176.31,18.64964886]
[1747236330408,143.27202939,176.35,176.31,18.64964886]
[1747236330603,137.60144927,176.35,176.31,18.64964886]
[1747236330905,143.2721543,176.35,176.31,18.64964886]
[1747236331697,137.60144927,176.35,176.31,18.64964886]
[1747236332008,137.60144927,176.35,176.31,24.32144241]
[1747236332717,137.60144927,176.35,176.31,18.64964886]
[1747236332894,40.17124554,176.42,176.31,18.64964886]
[1747236332895,137.60144927,176.42,176.34,44.64964886]
[1747236333216,137.60144927,176.42,176.37,18.64964886]
[1747236333419,137.60144927,176.42,176.38,20.56]
[1747236333617,5.66803349,176.43,176.38,20.56]
[1747236333618,137.60144927,176.46,176.39,18.64964886]
[1747236333783,5.66739029,176.45,176.39,18.64964886]
[1747236333978,19.45050359,176.44,176.38,20.56]
[1747236334393,19.83570992,176.45,176.38,20.56]
[1747236334582,19.45050359,176.44,176.38,20.56]
[1747236336019,5.66797029,176.43,176.38,26.22955956]
[1747236336193,137.60144927,176.46,176.39,18.64964886]
[1747236336586,157.05195286,176.46,176.39,18.64964886]
[1747236337312,5.66738241,176.45,176.39,18.64964886]
[1747236337478,19.45050359,176.43,176.37,20.56]
[1747236338008,19.45050359,176.44,176.37,20.56]
[1747236338518,137.60144927,176.43,176.38,18.64964886]
[1747236339089,137.60144927,176.43,176.39,5.66925562]
[1747236339311,137.60144927,176.47,176.39,6.80283513]
[1747236339621,143.26821988,176.47,176.39,6.80283513]
[1747236339992,143.26821988,176.47,176.39,5.66925562]
[1747236340532,143.26821988,176.47,176.39,6.80276988]
[1747236340688,19.45050359,176.46,176.38,18.64964886]
[1747236343497,137.60144927,176.44,176.39,26.22915556]
[1747236343695,143.26909853,176.44,176.39,26.22915556]
[1747236343899,143.26909853,176.44,176.39,20.56]
[1747236345387,162.71960212,176.44,176.39,20.56]
[1747236345592,176.88872476,176.44,176.39,20.56]
[1747236345812,19.45050359,176.41,176.36,1.5484]
[1747236346010,137.60144927,176.43,176.36,22.1084]
[1747236346214,157.05195286,176.43,176.36,22.1084]
[1747236346698,137.60144927,176.43,176.36,22.1084]
[1747236346895,19.45050359,176.42,176.36,22.1084]
[1747236347229,5.66861289,176.41,176.36,22.1084]
[1747236347728,25.11911648,176.41,176.36,22.1084]
[1747236348030,19.45050359,176.4,176.36,22.1084]
[1747236348193,19.45050359,176.38,176.33,41.1]
[1747236348401,19.45050359,176.37,176.33,41.1]
[1747236348600,137.60144927,176.39,176.33,41.1]
[1747236348816,137.60144927,176.39,176.33,46.77115117]
[1747236349812,143.27097079,176.39,176.33,41.1]
[1747236350019,19.45050359,176.38,176.33,41.1]
[1747236350819,19.45050359,176.37,176.32,1.5042]
[1747236351121,5.67022,176.36,176.32,1.5042]
[1747236351888,157.05195286,176.35,176.32,1.5042]
[1747236352096,137.60144927,176.35,176.32,1.5042]
[1747236352606,157.05195286,176.34,176.32,1.5042]
[1747236352801,157.05195286,176.33,176.28,22.1339]
[1747236353019,19.45050359,176.31,176.28,1.5939]
[1747236353320,5.67214974,176.3,176.28,1.5939]
[1747236353892,5.67192268,176.31,176.28,1.5939]
[1747236354201,137.60144927,176.32,176.28,1.5939]
[1747236354406,137.60144927,176.32,176.29,18.64964886]
[1747236355522,137.60144927,176.32,176.29,24.32208676]
[1747236355694,137.60144927,176.32,176.29,18.64964886]
[1747236356721,5.67109906,176.34,176.29,18.64964886]
[1747236357328,25.12160265,176.34,176.28,1.5939]
[1747236357621,5.67109906,176.34,176.28,1.5939]
[1747236357824,5.67109906,176.34,176.28,7.26666342]
[1747236358319,5.67109906,176.34,176.29,20.56]
[1747236358529,25.12160265,176.34,176.29,20.56]
[1747236359030,5.67109906,176.34,176.29,20.56]
[1747236359530,143.27254833,176.34,176.29,20.56]
[1747236360238,143.27254833,176.34,176.29,26.23234331]
[1747236360239,137.60144927,176.34,176.29,26.23234331]
[1747236360523,137.60144927,176.34,176.29,20.56]
[1747236360728,137.60144927,176.34,176.29,26.23236413]
[1747236360938,143.27105669,176.38,176.3,39.20964886]
[1747236361101,137.60144927,176.38,176.34,18.64964886]
[1747236361732,162.72155517,176.38,176.33,28.5321]
[1747236361938,137.60144927,176.38,176.33,28.5321]
[1747236362301,5.66852909,176.42,176.34,18.64964886]
[1747236362498,5.66807002,176.43,176.34,18.64964886]
[1747236362702,5.66807002,176.43,176.35,1.41811327]
[1747236363737,5.66764905,176.44,176.37,18.64964886]
[1747236364104,5.66764905,176.44,176.37,39.20964886]
[1747236364412,137.60144927,176.45,176.39,18.64964886]
[1747236364597,137.60144927,176.45,176.41,6.4662]
[1747236366429,143.26889461,176.45,176.41,6.4662]
[1747236367129,137.60144927,176.45,176.41,6.4662]
[1747236367830,137.60144927,176.45,176.41,12.13473738]
[1747236368013,137.60144927,176.45,176.41,6.4662]
[1747236368609,143.26884845,176.45,176.41,6.4662]
[1747236368944,137.60144927,176.45,176.41,6.4662]
[1747236369432,137.60144927,176.45,176.41,12.13478743]
[1747236369817,137.60144927,176.45,176.42,18.64964886]
[1747236370324,137.60144927,176.45,176.44,18.64964886]
[1747236370532,5.66578052,176.5,176.44,18.64964886]
[1747236370739,5.66578052,176.5,176.44,39.18964886]
[1747236371112,157.05195286,176.52,176.44,39.18964886]
[1747236371333,137.60144927,176.52,176.44,39.18964886]
[1747236371534,143.26662176,176.52,176.45,5.66732785]
[1747236371839,143.26662176,176.52,176.46,18.64964886]
[1747236372150,143.26662176,176.52,176.47,20.54]
[1747236372815,19.45050359,176.51,176.46,20.54]
[1747236373234,143.26662176,176.52,176.46,20.54]
[1747236373549,162.71712535,176.52,176.46,20.54]
[1747236374554,143.26662176,176.52,176.46,20.54]
[1747236374748,143.26662176,176.52,176.46,26.20692777]
[1747236375208,143.26662176,176.52,176.46,20.54]
[1747236375415,162.71712535,176.52,176.46,20.54]
[1747236375613,19.45050359,176.5,176.43,22.1943]
[1747236375940,19.45050359,176.49,176.44,20.54]
[1747236376119,157.42932287,176.52,176.44,20.54]
[1747236376120,19.45050359,176.5,176.44,20.54]
[1747236376728,157.42932287,176.52,176.44,26.20757255]
[1747236377023,19.45050359,176.51,176.44,20.54]
[1747236378839,5.66572237,176.5,176.44,20.54]
[1747236379426,39.2805319,176.5,176.43,22.1943]
[1747236379635,19.45050359,176.47,176.43,22.1943]
[1747236379835,19.45050359,176.48,176.43,42.7143]
[1747236380041,157.05195286,176.49,176.43,42.7143]
[1747236380553,19.45050359,176.48,176.43,42.7143]
[1747236380758,5.66668555,176.47,176.43,42.7143]
[1747236381865,19.45050359,176.46,176.43,22.1943]
[1747236382033,157.05195286,176.46,176.43,22.1743]
[1747236382726,157.05195286,176.46,176.43,1.6543]
[1747236382928,157.05195286,176.46,176.41,20.52]
[1747236382929,25.11783144,176.45,176.41,20.52]
[1747236383142,19.45050359,176.44,176.41,20.52]
[1747236383856,19.45050359,176.44,176.4,20.52]
[1747236384451,19.45050359,176.42,176.38,1.5177]
[1747236384767,19.45050359,176.39,176.35,20.52]
[1747236384980,5.66957704,176.38,176.35,20.52]
[1747236385175,19.45050359,176.36,176.32,20.52]
[1747236385466,19.45050359,176.34,176.32,20.52]
[1747236385831,19.45050359,176.33,176.32,20.52]
[1747236386033,19.45050359,176.33,176.29,22.0712]
[1747236386253,19.45050359,176.31,176.29,1.5512]
[1747236386479,19.45050359,176.3,176.28,20.52]
[1747236386723,19.45050359,176.29,176.24,22.1627]
[1747236386834,40.17922417,176.32,176.24,22.1627]
[1747236387042,19.45050359,176.3,176.24,22.1627]
[1747236387358,40.17922417,176.32,176.24,22.1627]
[1747236387359,19.45050359,176.29,176.24,22.1627]
[1747236387569,19.45050359,176.27,176.24,1.6427]
[1747236387879,19.45050359,176.26,176.2,20.52]
[1747236388740,19.45050359,176.25,176.2,20.52]
[1747236388941,19.45050359,176.26,176.2,26.1953409]
[1747236389243,143.27389987,176.3,176.21,18.64964886]
[1747236389444,19.45050359,176.29,176.21,18.64964886]
[1747236389961,5.67150635,176.32,176.21,19.7843836]
[1747236390168,19.45050359,176.3,176.21,19.7843836]
[1747236390335,5.67150635,176.32,176.21,19.7843836]
[1747236390538,19.45050359,176.3,176.22,0.39855072]
[1747236390736,19.45050359,176.33,176.24,0.14216157]
[1747236390971,19.45050359,176.34,176.27,6.4705]
[1747236391135,5.67054153,176.35,176.28,39.16964886]
[1747236391540,25.12104512,176.35,176.29,0.39855072]
[1747236391969,5.67034213,176.36,176.29,0.39855072]
[1747236392167,25.12084572,176.36,176.29,0.39855072]
[1747236392659,19.45050359,176.34,176.29,0.39855072]
[1747236392963,5.67150635,176.32,176.29,0.39855072]
[1747236393971,25.1217266,176.33,176.29,0.39855072]
[1747236394348,5.67122301,176.33,176.29,0.39855072]
[1747236395178,5.67091947,176.34,176.29,0.39855072]
[1747236396172,25.12142306,176.34,176.29,0.39855072]
[1747236396681,19.45050359,176.33,176.29,0.39855072]
[1747236397184,5.67150635,176.32,176.29,0.39855072]
[1747236397386,25.12200994,176.32,176.29,0.39855072]
[1747236397555,5.67150635,176.32,176.29,0.39855072]
[1747236398479,25.12200994,176.32,176.29,0.39855072]
[1747236398799,19.45050359,176.3,176.29,0.39855072]
[1747236399483,25.12265333,176.3,176.29,0.39855072]
[1747236400076,5.67150635,176.32,176.29,0.39855072]
[1747236400257,14.17592861,176.36,176.29,0.39855072]
[1747236400462,25.12104512,176.35,176.29,0.39855072]
[1747236400670,19.45050359,176.34,176.29,0.39855072]
[1747236401406,25.12104512,176.35,176.29,0.39855072]
[1747236401981,5.67054153,176.35,176.29,0.39855072]
[1747236402185,5.67054153,176.35,176.29,6.07095443]
[1747236402386,5.67054153,176.35,176.29,0.39855072]
[1747236402585,5.67054153,176.35,176.3,20.52]
[1747236403695,25.12079752,176.36,176.3,26.19207273]
[1747236403996,25.12079752,176.36,176.3,20.52]
[1747236405168,138.0,176.36,176.3,26.19194982]
[1747236405374,138.0,176.36,176.33,5.67118471]
[1747236405885,138.0,176.36,176.34,0.39331011]
[1747236406995,138.0,176.4,176.34,0.39331011]
[1747236407502,138.0,176.4,176.39,19.43071471]
[1747236407673,138.0,176.4,176.39,25.09997033]
[1747236407874,138.0,176.46,176.4,7.7437]
[1747236408078,138.0,176.46,176.45,19.43071471]
[1747236408280,19.43071471,176.51,176.45,39.95071471]
[1747236408502,5.66475953,176.53,176.48,19.43071471]
[1747236408806,5.66475953,176.53,176.49,19.43071471]
[1747236409392,5.66475953,176.53,176.46,18.64964886]
[1747236409585,25.09547424,176.53,176.45,59.68964886]
[1747236409910,19.43071471,176.52,176.47,19.43071471]
[1747236410211,25.09547424,176.53,176.48,19.43071471]
[1747236410402,19.43071471,176.52,176.47,19.43071471]
[1747236410998,19.82665835,176.53,176.48,19.43071471]
[1747236411197,39.25737306,176.53,176.48,19.43071471]
[1747236411509,39.25737306,176.53,176.47,19.43071471]
[1747236411510,19.43071471,176.52,176.47,19.43071471]
[1747236411695,5.66540139,176.51,176.47,19.43071471]
[1747236413111,5.66540139,176.51,176.49,19.43071471]
[1747236413300,5.66540139,176.51,176.49,20.94501471]
[1747236413813,14.16189882,176.53,176.49,20.94501471]
[1747236414013,19.43071471,176.52,176.47,19.43071471]
[1747236414311,19.43071471,176.5,176.46,20.5]
[1747236414883,40.16189882,176.53,176.46,20.5]
[1747236415083,19.43071471,176.5,176.46,20.5]
[1747236415284,5.6660434,176.49,176.46,20.5]
[1747236416219,143.6660434,176.49,176.46,20.5]
[1747236416617,163.09675811,176.49,176.46,20.5]
[1747236416821,177.26186661,176.49,176.45,1.5163]
[1747236417010,138.0,176.48,176.45,1.5163]
[1747236417394,5.66668555,176.47,176.45,1.5163]
[1747236418421,25.09740026,176.47,176.43,20.5]
[1747236418624,39.26411414,176.47,176.43,20.5]
[1747236419119,39.26411414,176.47,176.43,39.93071471]
[1747236419919,19.83339943,176.47,176.43,39.93071471]
[1747236420130,39.26411414,176.47,176.43,39.93071471]
[1747236420520,5.66668555,176.47,176.45,19.43071471]
[1747236420922,143.66638893,176.48,176.46,19.43071471]
[1747236421101,143.66638893,176.48,176.43,20.5]
[1747236421102,138.0,176.48,176.47,19.43071471]
[1747236421304,5.66475953,176.53,176.49,6.6147]
[1747236421642,5.66475953,176.53,176.52,19.43071471]
[1747236422019,5.66475953,176.53,176.51,19.43071471]
[1747236422215,5.66475953,176.53,176.5,20.5]
[1747236422416,5.66475953,176.53,176.51,19.43071471]
[1747236422829,5.66475953,176.53,176.5,20.5]
[1747236425115,5.66475953,176.53,176.48,22.0694]
[1747236425429,5.66540139,176.51,176.48,22.0494]
[1747236425614,138.0,176.52,176.48,22.0494]
[1747236425935,26.14216157,176.58,176.48,22.0494]
[1747236425936,5.66420755,176.55,176.49,18.64964886]
[1747236426120,143.66377837,176.57,176.49,19.78253591]
[1747236426929,138.0,176.57,176.49,19.78253591]
[1747236427145,138.0,176.57,176.53,18.64964886]
[1747236427332,5.66194791,176.62,176.56,1.513]
[1747236427513,5.66194791,176.62,176.57,20.48]
[1747236428216,143.66164034,176.63,176.58,18.64964886]
[1747236428540,138.0,176.63,176.58,18.64964886]
[1747236428714,143.66169511,176.63,176.58,18.64964886]
[1747236429041,138.0,176.63,176.58,18.64964886]
[1747236429537,138.0,176.63,176.58,24.31272086]
[1747236429918,138.0,176.63,176.58,25.44509384]
[1747236430632,138.0,176.63,176.58,51.44509384]
[1747236430940,143.66159636,176.63,176.58,45.78202184]
[1747236431139,143.66159636,176.63,176.58,44.64964886]
[1747236431447,143.66159636,176.63,176.58,18.64964886]
[1747236432821,5.6609114,176.65,176.58,18.64964886]
[1747236433707,5.66059096,176.66,176.58,18.64964886]
[1747236434415,19.81206837,176.66,176.58,18.64964886]
[1747236434619,5.66059096,176.66,176.58,24.31272651]
[1747236435930,5.66059096,176.66,176.58,18.64964886]
[1747236436241,19.40445265,176.63,176.57,20.48]
[1747236436447,19.40445265,176.64,176.57,20.48]
[1747236437554,19.40445265,176.62,176.57,20.48]
[1747236437848,19.40445265,176.62,176.57,20.46]
[1747236438136,5.66219353,176.61,176.57,20.46]
[1747236438359,138.0,176.63,176.57,20.46]
[1747236438508,143.66160691,176.63,176.57,20.46]
[1747236439443,19.40445265,176.62,176.57,20.46]
[1747236439745,163.06605956,176.63,176.57,20.46]
[1747236442326,138.0,176.63,176.57,26.12339291]
[1747236442626,143.6616033,176.63,176.57,26.12339291]
[1747236443011,138.0,176.63,176.57,26.12339291]
[1747236443221,143.66156781,176.63,176.57,26.12339291]
[1747236443424,138.0,176.63,176.57,26.12339291]
[1747236443627,143.66158745,176.63,176.57,26.12339291]
[1747236443850,138.0,176.63,176.57,26.12339291]
[1747236444209,143.66161198,176.63,176.57,26.12339291]
[1747236444624,138.0,176.63,176.57,26.12339291]
[1747236444822,138.0,176.63,176.58,18.64964886]
[1747236445231,5.66068561,176.66,176.58,18.64964886]
[1747236445630,163.064813,176.67,176.58,18.64964886]
[1747236446055,163.064813,176.67,176.6,18.64964886]
[1747236447145,163.064813,176.67,176.6,5.66230292]
[1747236447518,163.064813,176.67,176.6,18.64964886]
[1747236449150,163.064813,176.67,176.6,5.66248768]
[1747236449332,138.0,176.67,176.6,5.66248768]
[1747236449536,138.0,176.67,176.6,24.31213654]
[1747236449739,138.0,176.67,176.62,18.64964886]
[1747236450454,138.0,176.71,176.62,45.78176047]
[1747236450672,138.0,176.71,176.63,0.68287387]
[1747236450848,138.0,176.71,176.66,5.66059096]
[1747236451475,5.6570685,176.77,176.7,6.5063]
[1747236451655,138.0,176.76,176.71,20.44]
[1747236452374,157.40445265,176.76,176.71,20.44]
[1747236453264,5.65770862,176.75,176.71,20.44]
[1747236455471,19.40445265,176.72,176.68,1.6143]
[1747236455647,19.40445265,176.72,176.68,22.0543]
[1747236456050,19.40445265,176.73,176.68,22.0543]
[1747236456245,19.40445265,176.72,176.68,22.0543]
[1747236456474,19.80198019,176.75,176.68,22.0543]
[1747236456475,157.40445265,176.71,176.68,22.0543]
[1747236456869,19.40445265,176.7,176.68,22.0543]
[1747236457378,5.65962986,176.69,176.68,20.44]
[1747236457578,25.06408251,176.69,176.68,20.44]
[1747236458079,19.40445265,176.7,176.68,20.44]
[1747236458245,143.65920766,176.71,176.68,20.44]
[1747236458446,163.06366031,176.71,176.68,20.44]
[1747236458687,19.40445265,176.69,176.68,20.44]
[1747236458855,19.40445265,176.7,176.68,20.44]
[1747236459187,163.06366031,176.71,176.68,20.44]
[1747236460171,19.40445265,176.7,176.68,20.44]
[1747236460750,143.65920766,176.71,176.68,20.44]
[1747236461077,19.40445265,176.7,176.68,20.44]
[1747236461578,163.06366031,176.71,176.68,20.44]
[1747236462782,163.06366031,176.71,176.65,26.10083094]
[1747236462952,143.65920766,176.71,176.65,46.52083094]
[1747236463274,138.0,176.71,176.65,46.52083094]
[1747236463742,138.0,176.71,176.66,18.64964886]
[1747236464047,138.0,176.71,176.66,19.78156766]
[1747236464446,138.0,176.71,176.67,5.66027056]
[1747236464878,25.06226183,176.75,176.68,18.64964886]
[1747236465068,5.65780918,176.75,176.68,18.64964886]
[1747236465467,25.06226183,176.75,176.68,18.64964886]
[1747236465670,5.65780918,176.75,176.68,18.64964886]
[1747236465875,25.06226183,176.75,176.68,18.64964886]
[1747236466057,25.06226183,176.75,176.68,5.65992231]
[1747236466765,5.65780918,176.75,176.68,5.65992231]
[1747236467278,5.65780918,176.75,176.68,18.64964886]
[1747236467880,5.65780918,176.75,176.69,6.5255]
[1747236468986,25.06226183,176.75,176.69,6.5255]
[1747236470396,5.65780918,176.75,176.69,12.18505952]
[1747236470984,25.06226183,176.75,176.69,6.5255]
[1747236472473,5.65780918,176.75,176.69,12.18507171]
[1747236473361,5.65780918,176.75,176.69,6.5255]
[1747236473973,17.75784612,176.75,176.69,6.5255]
[1747236474161,12.10003694,176.74,176.69,6.5255]
[1747236475081,12.10003694,176.75,176.69,6.5255]
[1747236475798,138.0,176.76,176.69,6.5255]
[1747236475960,138.0,176.75,176.71,1.5023]
[1747236476164,138.0,176.75,176.72,20.42]
[1747236479770,138.0,176.75,176.71,1.5023]
[1747236479958,138.0,176.75,176.72,20.42]
[1747236481571,138.0,176.8,176.73,18.64964886]
[1747236482079,138.0,176.8,176.73,19.78104018]
[1747236482263,138.0,176.8,176.74,0.28432314]
[1747236483069,138.0,176.8,176.73,18.64964886]
[1747236483292,138.0,176.8,176.74,0.28432314]
[1747236485280,138.0,176.8,176.78,8.0563]
[1747236485480,138.0,176.87,176.79,20.4]
[1747236485680,138.0,176.86,176.79,20.4]
[1747236486396,150.10003694,176.86,176.79,20.4]
[1747236486605,138.0,176.86,176.8,18.64964886]
[1747236488513,150.10003694,176.86,176.79,20.4]
[1747236488824,12.10003694,176.85,176.79,20.4]
[1747236489224,138.0,176.86,176.79,20.4]
[1747236489393,150.10003694,176.86,176.79,20.4]
[1747236491624,150.10003694,176.85,176.79,20.4]
[1747236491807,12.10003694,176.84,176.79,20.4]
[1747236492010,150.10003694,176.85,176.79,20.4]
[1747236493126,150.10003694,176.85,176.8,20.38]
[1747236493823,12.10003694,176.84,176.8,20.38]
[1747236493998,150.10003694,176.85,176.8,20.38]
[1747236494622,138.0,176.85,176.8,20.38]
[1747236495321,150.10003694,176.85,176.8,20.38]
[1747236495506,12.10003694,176.84,176.8,20.38]
[1747236497226,150.10003694,176.85,176.8,20.38]
[1747236497603,138.0,176.84,176.8,20.38]
[1747236510663,138.0,176.84,176.81,20.36]
[1747236516560,138.0,176.9,176.82,18.64964886]
[1747236517935,150.10003694,176.9,176.82,18.64964886]
[1747236518862,138.0,176.9,176.82,18.64964886]
[1747236519041,150.10003694,176.9,176.82,18.64964886]
[1747236520749,12.10003694,176.88,176.83,20.34]
[1747236521146,138.0,176.9,176.83,20.34]
[1747236521147,12.10003694,176.89,176.83,20.34]
[1747236521867,5.65355042,176.88,176.83,20.34]
[1747236522041,5.65334434,176.89,176.83,25.99510927]
[1747236522662,155.75303855,176.9,176.83,25.99510927]
[1747236523348,12.10003694,176.89,176.83,25.99510927]
[1747236524363,17.75337,176.89,176.83,25.99510927]
[1747236525641,12.10003694,176.86,176.79,5.65642853]
[1747236525837,12.10003694,176.86,176.8,20.32]
[1747236526045,12.10003694,176.87,176.81,20.32]